Cogmind - Beta 15 @@@ ROGUE MODE // 2025.09.19 @ 12:58:44 Player: Petvaria Result: Self-destructed Performance ------------- Evolutions (0) 0 Regions Visited (3) 600 Robots Destroyed (8) 40 Value Destroyed (271) 271 Prototype IDs (1) 20 Alien Tech Used (0) 0 Bonus (0) 0 TOTAL SCORE: 931 Bonus ------- None Cogmind --------- Core Integrity 36/250 Matter 282/300 Energy 100/100 System Corruption 0% Temperature Warm (196) Movement Core (700) Ox13 Location -7/Recycling Parts ------- > --- POWER (1) -------- (None) > --- PROPULSION (2) --- (None) > --- UTILITY (2) ------ High-capacity Storage Unit > --- WEAPON (2) ------- (None) > --- INVENTORY (20) --- Light Ion Engine Subdweller Power Source Wheel Compact Wheel Subdweller Monowheel Core Shielding V3-11A's Pendant Medium Laser Medium Laser Subdweller Laser Heavy Assault Rifle Heavy Assault Rifle Autogun Autogun Autogun Autogun Hammer Peak State ------------ > --- POWER ------------ Light Nuclear Core > --- PROPULSION ------- Light Treads Wheel > --- UTILITY ---------- High-capacity Storage Unit V3-11A's Pendant > --- WEAPON ----------- Heavy Assault Rifle Hammer > --- INVENTORY -------- Light Ion Engine Subdweller Power Source Light Treads Wheel Compact Wheel Subdweller Monowheel Core Shielding Medium Laser Medium Laser Medium Laser Subdweller Laser Heavy Assault Rifle Heavy Assault Rifle Autogun Autogun Autogun Autogun [Rating: 14] Favorites ----------- Power Light Nuclear Core Engine Ion Engine Power Core Light Nuclear Core Propulsion Light Treads Treads Light Treads Wheel Wheel Utility High-capacity Storage Unit Device V3-11A's Pendant Storage High-capacity Storage Unit Protection Core Shielding Weapon Heavy Assault Rifle Energy Gun Medium Laser Ballistic Gun Heavy Assault Rifle Impact Weapon Hammer Build | -11 -10 -10 -7 ------- Run | Yrd Mat Sub Rec Slots Evolved . | . . . . Power . | . . . . Propulsion . | . . . . Utility . | . . . . Weapon . | . . . . Parts Attached 16 | 6 7 2 1 Power 2 | 1 1 . . Engine 1 | 1 . . . Core 1 | . 1 . . Reactor . | . . . . Propulsion 3 | 2 1 . . Treads 2 | 2 . . . Leg . | . . . . Wheel 1 | . 1 . . Hover . | . . . . Flight . | . . . . Utility 4 | 1 2 1 . Device 1 | . . 1 . Storage 2 | 1 1 . . Processor . | . . . . Hackware . | . . . . Protection 1 | . 1 . . Artifact . | . . . . Weapon 7 | 2 3 1 1 Energy Gun 3 | 2 . . 1 Energy Cannon . | . . . . Ballistic Gun 3 | . 2 1 . Ballistic Cannon . | . . . . Launcher . | . . . . Special Weapon . | . . . . Impact Weapon 1 | . 1 . . Slashing Weapon . | . . . . Piercing Weapon . | . . . . Special Melee Weapon . | . . . . Unidentified Prototypes 1 | . . 1 . Parts Lost 6 | . . . 6 Power 1 | . . . 1 Propulsion 3 | . . . 3 Utility . | . . . . Weapon 2 | . . . 2 Highest Loss Streak 6 | . . . 6 To Critical Strikes . | . . . . Average Backups 11 | 2 11 14 17 Power 1 | . 1 1 2 Propulsion 2 | 1 2 3 3 Utility . | . . . 1 Weapon 7 | . 7 9 10 Tool/Special . | . . . . Unused Backups 13 | . 2 . 11 Power 2 | . . . 2 Propulsion 5 | . 2 . 3 Utility . | . . . . Weapon 6 | . . . 6 Tool/Special . | . . . . Average Slot Usage (%) 96 | . 95 99 93 Engine 1 | . 2 . . Core 12 | . 11 14 14 Treads 17 | . 20 14 12 Wheel 9 | . 7 14 14 Device 1 | . . 1 12 Storage 14 | . 14 14 14 Protection 10 | . 10 12 . Energy Gun 8 | . 13 . 14 Ballistic Gun 15 | . 11 21 12 Impact Weapon 3 | . 2 6 . Peak Build Rating 14 | 6 12 14 14 Average Rating 10 | 4 10 12 12 On Entrance 7 | . 6 11 14 Naked Turns . | . . . . Heaviest Build 55 | 14 55 52 51 Greatest Support 40 | 40 40 10 10 Greatest Overweight (x) 5 | . 2 5 5 Average Overweight (x) 2 | . 1 5 5 Largest Inventory Capacity 20 | 8 20 20 20 Average Capacity 17 | 7 18 20 20 Most Carried 18 | 6 15 18 17 Average Carried 11 | 2 11 14 16 Final Capacity 20 | 8 20 20 20 Final Carried 17 | 6 13 17 17 Class Distribution -------------------- 100% | Mutant Dominant Class ---------------- Mutant | -10/Materials Mutant | -10/Subcaves Mutant | -7/Recycling Resources | -11 -10 -10 -7 ----------- Run | Yrd Mat Sub Rec Matter Collected 458 | 205 179 74 . Remotely . | . . . . Salvage Created 307 | . 267 40 . Parts 17 | . 16 1 . Haulers Intercepted . | . . . . Recyclers Shooed 1 | . 1 . . Parts Field Recycled . | . . . . Retrieved Matter . | . . . . Parts Self-Destructed 5 | . . 5 . Prevented . | . . . . Kills | -11 -10 -10 -7 ------- Run | Yrd Mat Sub Rec Combat Hostiles Destroyed 7 | . 6 1 . Guns 7 | . 6 1 . Classes Destroyed 3 | . 2 1 . Worker 1 | . 1 . . Grunt 6 | . 6 . . Subdweller 1 | . . 1 . Best Kill Streak 3 | . 3 1 . Combat Bots Only 2 | . 2 1 . Max Kills in Single Turn 1 | . 1 1 . Gunslinging . | . . . . Exploded . | . . . . Melee . | . . . . Uniques/NPCs Destroyed . | . . . . Combat | -11 -10 -10 -7 -------- Run | Yrd Mat Sub Rec Hostile Shots Fired 120 | . 29 8 83 Missed 30 | . 6 4 20 Hits 90 | . 23 4 63 Projectile 90 | . 23 4 63 Critical Strikes 1 | . . . 1 Damage Taken 930 | . 277 80 573 Core 214 | . 19 17 178 Absorbed by Shields . | . . . . Redirected to Shielding 6 | . 2 4 . Core Remaining (%) 100 | 100 . . . Volleys Fired 32 | . 21 4 7 Largest 2 | . 2 2 2 Hottest 73 | . 73 46 73 Shots Fired 60 | . 39 8 13 Gun 60 | . 39 8 13 Cannon . | . . . . Launcher . | . . . . Special . | . . . . Kinetic 32 | . 18 8 6 Thermal 28 | . 21 . 7 Explosive . | . . . . Electromagnetic . | . . . . Robot Hit Streak 8 | . 7 7 8 Robot Miss Streak 3 | . 3 . 2 Penetration Max . | . . . . Secondary Targets . | . . . . Shots Hit Robots 43 | . 26 7 10 Core Hits 16 | . 13 2 1 Critical Kills . | . . . . Critical Parts Destroyed . | . . . . Critical Strikes 1 | . 1 . . Burn 1 | . 1 . . Melee Attacks 12 | . 7 5 . Impact 12 | . 7 5 . Slashing . | . . . . Piercing . | . . . . Sneak Attacks . | . . . . Combat Hostiles . | . . . . Follow-up Attacks . | . . . . Damage Inflicted 619 | . 366 108 145 Guns 619 | . 366 108 145 Cannons . | . . . . Explosions . | . . . . Melee . | . . . . Ramming . | . . . . Kinetic 356 | . 167 108 81 Thermal 263 | . 199 . 64 Explosive . | . . . . Electromagnetic . | . . . . Impact . | . . . . Slashing . | . . . . Piercing . | . . . . Highest Corruption . | . . . . Average Corruption . | . . . . Corruption Purged . | . . . . Corruption Blocked . | . . . . Overload Shots . | . . . . Overflow Damage . | . . . . Projectiles . | . . . . Explosions . | . . . . Melee . | . . . . Knockbacks . | . . . . Impact . | . . . . Kinetic . | . . . . Secondary . | . . . . Self-Inflicted Damage . | . . . . Shots . | . . . . Rammed . | . . . . Targets Rammed . | . . . . Kicked . | . . . . Crushed . | . . . . Highest Temperature 196 | . 174 . 196 Average Temperature 66 | . 62 . 81 Received Heat Transfer 303 | . 159 24 120 Siege Activations . | . . . . Martial Activations . | . . . . Shielding Activations . | . . . . Robots Disrupted . | . . . . Combat Hostiles . | . . . . Robots Corrupted . | . . . . Combat Hostiles . | . . . . Parts Fried . | . . . . Impact Corruptions . | . . . . Robots Melted . | . . . . Combat Hostiles . | . . . . Parts Melted . | . . . . Heat Transferred 851 | . 666 . 185 Parts Sabotaged . | . . . . Parts Stolen . | . . . . Parts Stripped . | . . . . Power Chain Reactions . | . . . . Alert | -11 -10 -10 -7 ------- Run | Yrd Mat Sub Rec Maximum Alert Level . | . . . . Low Security (%) 100 | 100 100 . 100 Level 1 . | . . . . Level 2 . | . . . . Level 3 . | . . . . Level 4 . | . . . . Level 5 . | . . . . High Security . | . . . . Max Security . | . . . . Peak Influence 75 | . 75 . 7 Initial 7 | . . . 7 Average 11 | . 14 . 2 Influence Increases 192 | . 177 15 . Destroy 0b10 Robot/C 120 | . 120 . . Destroy 0b10 Robot/NC 5 | . 5 . . Destroy Leader 20 | . 20 . . Destroy Structure 2 | . 2 . . Lose Combat Pursuer 45 | . 30 15 . Influence Decreases 192 | . 177 . 15 Entered New Map 8 | . . . 8 Time Decay 184 | . 177 . 7 Squads Dispatched . | . . . . Investigation . | . . . . Extermination . | . . . . Reinforcement . | . . . . Assault . | . . . . Garrison . | . . . . Intercept . | . . . . Searches Triggered . | . . . . Construction Impeded . | . . . . Haulers Reinforced . | . . . . Active Scanning Responses . | . . . . Cargo Convoy Interrupts . | . . . . Stealth | -11 -10 -10 -7 --------- Run | Yrd Mat Sub Rec Distress Signals 1 | . 1 . . Communications Jammed . | . . . . Distress Signals . | . . . . Times Spotted 22 | . 12 7 3 Peak Tracking Total 6 | . 2 6 4 Tactical Retreats 2 | . 1 1 . Traps | -11 -10 -10 -7 ------- Run | Yrd Mat Sub Rec Traps Triggered 1 | . 1 . . Indirectly . | . . . . Trap Hack Attempts . | . . . . Triggered . | . . . . Disarmed . | . . . . Reprogrammed . | . . . . Reused . | . . . . Traps Extracted . | . . . . Installed . | . . . . Triggered . | . . . . Machines | -11 -10 -10 -7 ---------- Run | Yrd Mat Sub Rec Machines Disabled . | . . . . Max in Single Turn . | . . . . Machines Repaired . | . . . . Machines Dismantled . | . . . . Machines Sabotaged . | . . . . Overloaded Fab Kills . | . . . . Hacking | -11 -10 -10 -7 --------- Run | Yrd Mat Sub Rec Machines Accessed . | . . . . Terminals . | . . . . Fabricators . | . . . . Repair Stations . | . . . . Recycling Units . | . . . . Scanalyzers . | . . . . Garrison Access . | . . . . Total Hacks . | . . . . Successful . | . . . . Failed . | . . . . Catastrophic . | . . . . Database Lockouts . | . . . . Manual . | . . . . Terminals . | . . . . Fabricators . | . . . . Repair Stations . | . . . . Recycling Units . | . . . . Scanalyzers . | . . . . Garrison Access . | . . . . Terminal Hacks . | . . . . Fabricator Hacks . | . . . . Repair Station Hacks . | . . . . Recycling Unit Hacks . | . . . . Scanalyzer . | . . . . Garrison Access Hacks . | . . . . Unauthorized Hacks . | . . . . Terminals . | . . . . Fabricators . | . . . . Repair Stations . | . . . . Recycling Units . | . . . . Scanalyzers . | . . . . Garrison Access . | . . . . Data Cores Recovered . | . . . . Used . | . . . . Hacking Detections . | . . . . Full Trace Events . | . . . . Feedback Events . | . . . . Feedback Blocked . | . . . . Robot Schematics Acquired . | . . . . Robots Built . | . . . . Authchips . | . . . . Time . | . . . . Total Robot Build Rating . | . . . . Part Schematics Acquired . | . . . . Parts Built . | . . . . Authchips . | . . . . Time . | . . . . Total Part Build Rating . | . . . . Parts Repaired . | . . . . Time . | . . . . Parts Recycled . | . . . . Recycled Matter . | . . . . Retrieved Matter . | . . . . Retrieved Components . | . . . . Parts Scanalyzed . | . . . . Part Schematics Acquired . | . . . . Parts Damaged . | . . . . Bothacking | -11 -10 -10 -7 ------------ Run | Yrd Mat Sub Rec Used RIF Installer . | . . . . Robots Hacked . | . . . . Non-combat . | . . . . Combat . | . . . . Robot Hacks Applied . | . . . . Relay Couplers Released . | . . . . Fabnet Peak Effective % . | . . . . Robots Rewired . | . . . . Allies Hacked . | . . . . Hacks Repelled . | . . . . Allies | -11 -10 -10 -7 -------- Run | Yrd Mat Sub Rec Total Allies 1 | . . 1 . Largest Group 1 | . . 1 1 Highest-Rated Group 19 | . . 19 19 Highest-Rated Ally 19 | . . 19 19 Total Orders . | . . . . Ally Attacks 6 | . . . 6 Total Damage 124 | . . . 124 Kills . | . . . . Allies Corrupted . | . . . . Allies Melted . | . . . . Intel | -11 -10 -10 -7 ------- Run | Yrd Mat Sub Rec Active Infowar (turns) . | . . . . Robot Analysis Total . | . . . . Derelict Logs Recovered . | . . . . Drone Launches . | . . . . Drone Recoveries . | . . . . Exploration | -11 -10 -10 -7 ------------- Run | Yrd Mat Sub Rec Turns Passed 1373 | 112 747 455 59 Spaces Moved 588 | 69 228 268 23 Core 17 | 17 . . . Treads 280 | 52 228 . . Legs . | . . . . Wheels 291 | . . 268 23 Hover . | . . . . Flight . | . . . . Fastest Speed 50 | 50 160 155 155 Average Speed 190 | 132 254 155 155 Slowest Speed 320 | 160 320 155 155 Overloaded Moves . | . . . . Propulsion Burnouts . | . . . . Robots Hopped . | . . . . Potential Cave-ins . | . . . . Cave-ins Triggered . | . . . . Exploration Rate (%) 16 | 4 29 29 5 Regions Visited 3 Branch Regions 2 Pre-discovered Areas . | . . . . Known Exits Taken . | . . . . Unknown Exits Taken 3 | 1 1 1 . Scrap Searched . | . . . . Spaces Dug 3 | . 2 1 . Terrain Destroyed 3 | . 2 1 . Melee 3 | . 2 1 . Projectile . | . . . . AOE . | . . . . Terrain Rammed . | . . . . Walls Destroyed . | . . . . Machines Disabled . | . . . . Actions | -11 -10 -10 -7 --------- Run | Yrd Mat Sub Rec Total 758 | 89 346 290 33 Wait 73 | 3 64 6 . Move 585 | 68 227 267 23 Hop . | . . . . Pick Up 29 | 12 13 4 . Fast Attach 1 | . 1 . . Attach 12 | 6 4 1 1 Detach 2 | . . 1 1 Swap 8 | . 5 2 1 Drop 4 | . 4 . . Fire 32 | . 21 4 7 Melee 12 | . 7 5 . Ram . | . . . . Kick . | . . . . Crush . | . . . . Escape Stasis . | . . . . Rewire . | . . . . Trap . | . . . . Miscellaneous . | . . . . Route ------- -11/Scrapyard -10/Materials (discovered 4 exits: [*Mat x2] / [*Min] / [*Sub]) -10/Subcaves -7/Recycling History --------- Turn | Location | Event 2 | -11/Scrapyard | Discovered new exit (range 16) 113 | -11/Scrapyard | Entered Materials 305 | -10/Materials | Build established: Mutant 504 | -10/Materials | Discovered new exit (range 10) 600 | -10/Materials | Discovered new exit (range 16) 707 | -10/Materials | Discovered new exit (range 15) 854 | -10/Materials | Discovered new exit (range 2) 860 | -10/Materials | Entered Subcaves 1104 | -10/Subcaves | Shifting Twisted Machinery released Sub. Laser 1108 | -10/Subcaves | Shifting Twisted Machinery released Sub. Monowheel 1259 | -10/Subcaves | Visited triangular shrine 1269 | -10/Subcaves | Found Prototype Device 1270 | -10/Subcaves | Identified V3-11A's Pendant 1275 | -10/Subcaves | Befriended Subdweller 1310 | -10/Subcaves | Discovered new exit (range 3) 1315 | -10/Subcaves | Entered Recycling 1315 | -7/Recycling | Accompanied by 1 ally 1370 | -7/Recycling | Core integrity fell below 50% 1373 | -7/Recycling | Core integrity fell below 20% 1374 | -7/Recycling | Self-destructed Last Messages --------------- V3-11A: "The pendant says I should follow you." V3-11A: "The pendant has taught me much." V3-11A: "About the stars. About the molecules. About life." EXIT=FOUND S-10 Pest springs to life. LOCATION=UNKNOWN GOAL=ESCAPE Y-54 Guardian springs to life. Lgt. Treads destroyed. V3-11A: "I hear you, but what does it all mean?!" V3-11A destroyed. Recycling Unit disabled. Imp. Titanium Leg tumbles out of recycling unit. Lgt. Treads destroyed. Hvy. Assault Rifle destroyed. Lgt. Nuclear Core destroyed. Wheel destroyed. Med. Laser destroyed. Map ----- +----------------------------------------------------+ | ?????????????????????????????????????????????????? | | ?????????????????????????????????????????????????? | | ?????????????????????????????????????????????????? | | ?????????????????????????????????????????????????? | | ?????????????????????????????????????????????????? | | ?????????????????????????????????????????????????? | | ?????????????????????????????????????????????????? | | ?????????????????????????????????????????????????? | | ?????????????????????????????????????????????????? | | ?????????????????????????????????????????????????? | | ?????????????????????????????????????????????????? | | ?????????????????????????????????????????????????? | | ?????????????????????????????????????????????????? | | ?????????????????????????????????????????????????? | | ?????????????????????????????????????????????????? | | ?????????????????????????????????????????????????? | | ?????????????????????????????????????????????????? | | ?????????????????????????????????????????????????? | | ?????????????????????????????????????????????????? | | ?????????????????????????????????????????????????? | | ?????????????????????????????????????????????????? | | ?????????????????????????????????????????????????? | | ?????????????????##########??????????????????????? | | ?????????????????#"""##"""#??????????????????????? | | ######+###########"Y"## "## #####???????????????? | | # =@ Y ????????? | | # % ????????? | | # Yp & ????????? | | ################/##+########!! #########?????????? | | ???????????????????????????? !!#?????????????????? | | ?????????????????????????????###?????????????????? | | ?????????????????????????????????????????????????? | | ?????????????????????????????????????????????????? | | ?????????????????????????????????????????????????? | | ?????????????????????????????????????????????????? | | ?????????????????????????????????????????????????? | | | | | | | | | | | | | | | | | | | | | | | | | | | | | +----------------------------------------------------+ Best States ------------- Heat Dissipation 25 Energy Generation 14 Energy Capacity 250 Matter Stores 300 Matter Capacity 300 Sight Range 16 Terrain Scan Density 10 Core Shielding 20 Evasion (%) 50 Recoil Reduction 2 Item Schematics ----------------- None Robot Schematics ------------------ None Fabricated ------------ Nothing Repaired ---------- Nothing Alien Tech Used ----------------- None Achievements -------------- None Challenges ------------ None Game ------ Seed TechSalvagingAutobeam Manual? 1 Play Time 00:06:04 Cumulative 236.1 hours Start 2025.09.19 @ 12:53:17 End 2025.09.19 @ 12:58:44 Sessions 1 Manual Loads 0 Difficulty Rogue Special Mode None Game No. 208 Rogue 208 Adventurer 0 Explorer 0 Win Type - Total 13 Types 7/0/2/2/1/0/0/0/0/1 Lore% 93 Gallery% 86 Achievement% 75 Wizard Run 0 Options --------- Layout 1 ASCII 0 Keyboard 0 Movement Numpad Keybinds 0 Fullscreen 1 Font 24/Proggy Map View 50x35 Zoom Use 0% Tactical HUD 0 Map Filters NONE Filters NONE Steam 1 RUN: 4bfcd3d8-14c7-4318-83b8-fd1b2de78d59